[Event "1st Serbian League 2022"]
[Site "Vrnjacka Banja"]
[Date "2022.09.25"]
[Round "6.31"]
[White "Krstulovic, Alex"]
[Black "Demchenko, Anton"]
[Result "0-1"]
[ECO "E97"]
[WhiteElo "2411"]
[BlackElo "2645"]
[Annotator "TA"]
[PlyCount "134"]
[EventDate "2022.09.20"]
[EventType "team-tourn"]
[EventCountry "SRB"]
[SourceTitle "playchess.com"]
[Source "ChessBase"]
[SourceQuality "1"]
[TimeControl "40/5400+30:1800+30"]

{[%evp 18,134,13,12,24,19,42,21,27,26,25,20,36,22,30,30,36,0,0,0,0,0,-11,-30,-19,-18,-17,-91,-40,-47,0,0,0,0,0,-26,-12,-8,-10,-77,-70,-94,-91,-106,-79,-83,-72,-71,-69,-67,-70,-77,-70,-70,-62,-81,-79,-78,-64,-88,-81,-88,-69,-69,-69,-69,-39,-39,-23,-24,-10,-15,-26,-13,-26,-18,-19,-8,-16,-59,-59,-107,-104,-117,-115,-104,-110,-122,-8,-8,-8,-8,-8,-28,0,0,0,0,0,0,0,0,0,0,0,0,0,0,0,0,0,0,-8,-29975,-29975,-29982,-29983,-29979,-29977]} 1. d4 {[%emt 0:00:04]} Nf6 {[%emt 0:00:07]} 2. Nf3 {[%emt 0:00:06]} g6 {[%emt 0:00:12]} 3. c4 {[%emt 0:00:08]} Bg7 {[%emt 0:00:04]} 4. Nc3 {[%emt 0:00:04]} O-O {[%emt 0:00:22]} 5. e4 {[%emt 0:00:08]} d6 {[%emt 0:00:04]} 6. Be2 {[%emt 0:00:03]} e5 {[%emt 0:00:31]} 7. O-O {[%emt 0:00:10]} Nc6 {[%emt 0:00:06]} 8. dxe5 {[%emt 0:00:21]} dxe5 {[%emt 0:00:46]} 9. Bg5 {[%emt 0:00:59]} Qxd1 {[%emt 0:06:25]} 10. Rfxd1 {[%emt 0:02:18]} h5 $5 {[%emt 0:04:52][%mdl 4] [#] Leaves trodden paths. E97: King's Indian: Classical Main Line (6...e5 7 0-0 Nc6): 8 Be3 and 8 d5 Ne7, not 9 Ne1.} 11. Be3 $146 {[%emt 0:11:54]} ({Predecessor:} 11. h3 Nd4 12. Nxd4 exd4 13. Bxf6 Bxf6 14. Nd5 Bd8 15. Rxd4 c6 16. Nc3 Be6 17. Rdd1 Kg7 18. e5 {½-½ (44) Bluebaum,M (2642)-Saric,I (2687) Terme Catez 2022}) 11... b6 {[%emt 0:05:38]} 12. h3 {[%emt 0:14:09]} Bb7 {[%emt 0:01:12] The position is equal.} 13. Rac1 {[%emt 0:06:51]} Rfd8 {[%emt 0:13:43]} 14. Bd3 {[%emt 0:08:50]} Ne8 {[%emt 0:08:03]} 15. c5 {[%emt 0:07:51]} Nd4 {[%emt 0:01:44]} 16. b4 {[%emt 0:15:10]} c6 {[%emt 0:04:33]} 17. Bg5 {[%emt 0:07:38]} (17. Bxd4 $14 exd4 18. Ne2) 17... Bf6 $11 {[%emt 0:04:58]} 18. Bxf6 {[%emt 0:03:07]} Nxf3+ {[%emt 0:00:05]} 19. gxf3 {[%emt 0:00:04]} Nxf6 {[%emt 0:00:04]} 20. h4 {[%emt 0:03:15]} Rd4 {[%emt 0:05:51]} 21. Rb1 {[%emt 0:04:34]} Kf8 {[%emt 0:04:27][%cal Bg8f8,Bf8e7,Be7f6][%mdl 32]} 22. f4 {[%emt 0:05:01]} (22. Bf1 $11) 22... exf4 $17 {[%emt 0:07:09] Black is more active.} 23. Ne2 {[%emt 0:00:04] [#]} Rdd8 {[%emt 0:00:40]} (23... Rxd3 $1 $15 24. Rxd3 Ba6 25. Nxf4 Bxd3 26. Nxd3 Nxe4) 24. Nxf4 $11 {[%emt 0:00:54]} Nd7 {[%emt 0:00:04]} 25. Be2 {[%emt 0:02:06]} Ke7 {[%emt 0:01:09]} 26. a4 {[%emt 0:02:32]} bxc5 {[%emt 0:03:06]} 27. bxc5 {[%emt 0:00:21]} Rab8 {[%emt 0:00:02]} (27... Nxc5 $2 28. Rdc1 $18) 28. Rdc1 {[%emt 0:00:57] [#]} (28. Bc4 $11) 28... Bc8 $1 $17 {[%emt 0:01:52]} 29. Rxb8 {[%emt 0:03:18]} Nxb8 {[%emt 0:00:01]} 30. Kf1 {[%emt 0:01:31]} Kf6 {[%emt 0:03:50]} 31. f3 {[%emt 0:00:49]} Rd4 {[%emt 0:05:24]} 32. Rc4 {[%emt 0:00:40]} Rxc4 {[%emt 0:02:39]} 33. Bxc4 {[%emt 0:00:01][%mdl 4096] Endgame KBN-KBN} Ke5 $1 {[%emt 0:00:06]} 34. Ne2 {[%emt 0:00:11]} Be6 {[%emt 0:00:16]} 35. Bd3 {[%emt 0:00:17]} Nd7 {[%emt 0:01:04]} 36. f4+ {[%emt 0:00:06]} Kf6 {[%emt 0:00:03]} 37. Nd4 {[%emt 0:01:52] Prevents Bb3.} Nxc5 {[%emt 0:00:14]} 38. Bc2 {[%emt 0:00:31]} Bd7 {[%emt 0:01:44]} 39. Kf2 {[%emt 0:00:11]} Ke7 {[%emt 0:07:47]} 40. Ke3 {[%emt 0:00:49]} Na6 {[%emt 0:00:51]} 41. Bd3 {[%emt 0:08:58]} Nb4 {[%emt 0:01:51]} 42. Nb3 {[%emt 0:00:42]} Kd6 {[%emt 0:04:15]} 43. Bc4 {[%emt 0:07:32]} Be6 {[%emt 0:00:38]} 44. e5+ $1 {[%emt 0:00:32]} Ke7 {[%emt 0:00:07]} 45. Bxe6 {[%emt 0:00:16]} Kxe6 $11 {[%emt 0:02:02] KN-KN} 46. Ke4 {[%emt 0:00:08]} Na6 {[%emt 0:12:01]} 47. Nd4+ {[%emt 0:07:29]} Kd7 {[%emt 0:00:01]} 48. Nb3 {[%emt 0:00:55] Inhibits Nc5+.} c5 {[%emt 0:04:10]} 49. Kd5 {[%emt 0:05:49]} (49. Na5 $15) 49... Nc7+ $17 {[%emt 0:00:05]} 50. Kxc5 {[%emt 0:00:03]} (50. Kc4 $2 Ne6 51. f5 (51. Nxc5+ $2 Nxc5 52. Kxc5 Ke6 $19) 51... gxf5 $19) 50... Ne6+ {[%emt 0:00:15]} 51. Kb5 {[%emt 0:00:01]} Nxf4 {[%emt 0:00:47][%cal Og6g5] White must now prevent ...g5!} 52. Ka6 {[%emt 0:00:04]} Nd3 {[%emt 0:06:20]} (52... g5 $17 53. hxg5 h4) 53. Kxa7 $11 {[%emt 0:00:07]} Kc7 {[%emt 0:00:17]} (53... Nxe5 54. Kb7 Nc4 55. Nc5+ (55. a5 Nxa5+ 56. Nxa5 f6 $19) 55... Kd6 56. Nd3) 54. Nd4 {[%emt 0:01:47]} Nxe5 {[%emt 0:00:35][%cal Og6g5] And now ...g5! would win.} 55. Ka6 {[%emt 0:00:03]} Nc6 {[%emt 0:03:22]} 56. Nf3 {[%emt 0:01:00]} Kd6 {[%emt 0:00:36]} 57. Kb6 {[%emt 0:00:21]} Kd5 {[%emt 0:03:01]} 58. Ng5 {[%emt 0:03:12]} (58. a5 Nxa5 59. Ng5 (59. Kxa5 $2 f5 $19) 59... Nc4+ 60. Kb5 f5 $19) 58... Ne5 {[%emt 0:01:31]} 59. Kc7 {[%emt 0:00:33] a5 is the strong threat.} f6 {[%emt 0:02:33]} 60. Nh7 {[%emt 0:00:30] Threatens to win with a5.} Nc4 {[%emt 0:01:34] aiming for ...Ke6.} 61. Nxf6+ {[%emt 0:00:27]} Ke5 {[%emt 0:00:08]} 62. Nh7 {[%emt 0:00:35]} Kf5 {[%emt 0:00:35]} 63. Nf8 {[%emt 0:00:30]} g5 {[%emt 0:00:16]} 64. hxg5 {[%emt 0:00:04]} Kxg5 {[%emt 0:00:20] ( -> ...Kf5)} 65. Nd7 $2 {[%emt 0:00:53][%mdl 8192]} (65. Ne6+ $11 Kg4 66. Nc5) 65... h4 {[%emt 0:00:18][%cal Bh5h4,Bh4h3][%mdl 32] Black mates.} 66. Nc5 {[%emt 0:00:15]} h3 {[%emt 0:00:21]} 67. Ne4+ {[%emt 0:00:44]} Kf4 {[%emt 0:00:25] Weighted Error Value: White=0.10 (very precise) /Black=0.09 (flawless)} 0-1

[Event "1st Serbian League 2022"]
[Site "Vrnjacka Banja"]
[Date "2022.09.25"]
[Round "6.32"]
[White "Atalik, Suat"]
[Black "Sedlak, Nikola"]
[Result "1/2-1/2"]
[ECO "D35"]
[WhiteElo "2436"]
[BlackElo "2466"]
[Annotator "TA"]
[PlyCount "25"]
[EventDate "2022.09.20"]
[EventType "team-tourn"]
[EventCountry "SRB"]
[SourceTitle "playchess.com"]
[Source "ChessBase"]
[SourceQuality "1"]
[TimeControl "40/5400+30:1800+30"]

{[%evp 12,25,14,25,18,15,10,11,25,0,25,0,22,0,20,0]} 1. d4 {[%emt 1:31:00]} d5 {[%emt 1:31:00]} 2. c4 {[%emt 0:00:30]} c6 {[%emt 0:00:30]} 3. Nf3 {[%emt 0:00:30]} Nf6 {[%emt 0:00:30]} 4. Nc3 {[%emt 0:00:30]} e6 {[%emt 0:00:30]} 5. Bg5 {[%emt 0:00:30]} Nbd7 {[%emt 0:00:30]} 6. cxd5 {[%emt 0:00:30]} exd5 {[%emt 0:00:30]} 7. e3 {[%emt 0:00:30]} h6 {[%emt 0:00:30] D35: Queen's Gambit Declined: Exchange Variation.} 8. Bh4 {[%emt 0:00:30][%cal Bg5h4,Bh4g3,Bg3e5][%mdl 32]} g5 {[%emt 0:00:30]} 9. Bg3 {[%emt 0:00:30]} Nh5 {[%emt 0:00:30]} 10. Be5 {[%emt 0:00:30]} Ng7 {[%emt 0:00:30]} 11. Bg3 {[%emt 0:00:30] [#]} Nh5 $146 {[%emt 0:00:30]} ({Predecessor:} 11... Nf5 12. Bd3 Nxg3 13. hxg3 Bg7 14. Qc2 Nb6 15. O-O-O Be6 16. Kb1 Qe7 17. Rc1 Nd7 18. Na4 Bg4 19. Nh2 Be6 20. Nf3 Bg4 21. Nh2 Be6 22. Nf3 {½-½ (22) Li,D (2523)-Lupulescu,C (2649) Changsha 2019}) 12. Be5 {[%emt 0:00:30] Recently 12.Qc2 got a lot of attention.} Ng7 {[%emt 0:00:30]} 13. Bg3 {[%emt 0:00:30] An uneventful encounter.  Weighted Error Value: White=0.13 (very precise) /Black=0.04 (flawless)} 1/2-1/2

[Event "1st Serbian League 2022"]
[Site "Vrnjacka Banja"]
[Date "2022.09.25"]
[Round "6.33"]
[White "Popovic, Dusan"]
[Black "Vucinic, Gojko"]
[Result "1-0"]
[ECO "B51"]
[WhiteElo "2486"]
[BlackElo "2380"]
[Annotator "TA"]
[PlyCount "77"]
[EventDate "2022.09.20"]
[EventType "team-tourn"]
[EventCountry "SRB"]
[SourceTitle "playchess.com"]
[Source "ChessBase"]
[SourceQuality "1"]
[TimeControl "40/5400+30:1800+30"]

{[%evp 9,77,15,21,16,12,4,39,18,20,14,26,24,19,0,97,75,87,77,79,86,93,93,159,132,180,188,177,172,177,167,474,272,304,277,362,289,272,294,289,282,494,469,513,506,576,575,553,469,506,506,506,506,458,335,335,335,346,346,344,346,346,346,346,330,330,308,506,458,491,466]} 1. e4 {[%emt 0:00:04]} c5 {[%emt 0:05:45]} 2. Nf3 {[%emt 0:00:09]} d6 {[%emt 0:00:05]} 3. Bb5+ {[%emt 0:00:28]} Nd7 {[%emt 0:00:06]} 4. c4 {[%emt 0:00:19]} a6 {[%emt 0:00:41]} 5. Ba4 {[%emt 0:00:19]} Ngf6 {[%emt 0:00:41]} 6. Nc3 {[%emt 0:00:18] B51: Sicilian: Moscow Variation (3 Bb5+) without 3...Bd7.} e6 {[%emt 0:01:06]} 7. O-O {[%emt 0:00:31]} Qc7 {[%emt 0:00:36]} 8. Qe2 {[%emt 0:01:09] White is slightly better.} Be7 {[%emt 0:00:43]} 9. d4 {[%emt 0:00:10]} cxd4 {[%emt 0:01:23]} 10. Nxd4 {[%emt 0:00:07]} O-O {[%emt 0:02:17]} 11. Kh1 {[%emt 0:00:54] [#]} b6 $146 {[%emt 0:33:30]} (11... Nb6 $11 {keeps the balance.}) ({Predecessor:} 11... Ne5 12. Bb3 Bd7 13. f4 Nc6 14. Nf3 Rfc8 15. e5 Ne8 16. Bc2 g6 17. Bd2 Nb4 {½-½ (46) Bacrot,E (2642)-Shankland,S (2708) Belgrade 2022}) 12. Nc6 $1 $16 {[%emt 0:05:44] White is more active. White now steadily converts the win.} Nc5 {[%emt 0:04:46]} 13. Nxe7+ {[%emt 0:01:02]} Qxe7 {[%emt 0:00:04]} 14. Bc2 {[%emt 0:01:14]} e5 {[%emt 0:00:07]} 15. Be3 {[%emt 0:25:49]} Qb7 {[%emt 0:11:27]} ({Better is} 15... Ng4) 16. Rad1 {[%emt 0:12:33]} Nfxe4 {[%emt 0:16:51]} (16... Qc7 $16 17. Bg5 Ncd7) 17. Nxe4 $18 {[%emt 0:16:26]} Nxe4 {[%emt 0:00:04]} 18. f3 {[%emt 0:00:10][%mdl 64] Deflection} Nf6 {[%emt 0:00:46]} 19. Rxd6 {[%emt 0:06:09]} b5 $2 {[%emt 0:05:50] [#]} (19... Qc7 {is a better chance.} 20. Rxb6 Bb7) 20. Bg5 {[%emt 0:11:04]} (20. Rxf6 $142 $1 {[%mdl 512]} gxf6 21. Be4) 20... Be6 {[%emt 0:06:49]} 21. Qxe5 {[%emt 0:02:02]} Ne8 {[%emt 0:01:17]} 22. Be4 {[%emt 0:02:39] A strong pair of Bishops.} Nxd6 {[%emt 0:03:11]} 23. Bxb7 {[%emt 0:00:51]} Nxb7 {[%emt 0:00:02]} 24. cxb5 {[%emt 0:08:51]} Bxa2 $2 {[%emt 0:00:55]} (24... axb5 25. Qxb5 Na5) 25. Qc7 {[%emt 0:01:09]} Nd8 {[%emt 0:00:15]} 26. Bxd8 {[%emt 0:00:52]} Rfxd8 {[%emt 0:00:17]} 27. b6 {[%emt 0:01:56]} Rac8 {[%emt 0:00:06]} 28. Qe5 {[%emt 0:00:36]} Rb8 {[%emt 0:00:23]} 29. h3 {[%emt 0:00:37]} Be6 {[%emt 0:01:15]} 30. Qc5 {[%emt 0:00:33]} Rdc8 {[%emt 0:00:32]} 31. Qb4 {[%emt 0:00:17]} Rc6 {[%emt 0:03:23] [#]} 32. Rd1 $1 {[%emt 0:00:05] Threatens to win with b7.} ({Not} 32. b7 Rc7 33. Rd1 g6 $18) 32... h6 {[%emt 0:00:34]} 33. Rd6 {[%emt 0:00:29]} ({Weaker is} 33. b7 Rc7 34. Rd8+ Rxd8 $16) 33... Rbxb6 {[%emt 0:00:33]} 34. Qxb6 {[%emt 0:00:22]} Rxb6 {[%emt 0:00:07]} 35. Rxb6 {[%emt 0:00:03] KR-KB} Bc4 {[%emt 0:00:08]} 36. Rb8+ {[%emt 0:01:00]} Kh7 {[%emt 0:00:04]} 37. Kg1 {[%emt 0:00:12]} g5 $2 {[%emt 0:00:37]} (37... Kg6 38. Kf2 h5) 38. Kf2 {[%emt 0:01:14]} h5 {[%emt 0:00:38]} 39. h4 {[%emt 0:00:25] Weighted Error Value: White=0.23 (precise) /Black=0.42} 1-0

[Event "1st Serbian League 2022"]
[Site "Vrnjacka Banja"]
[Date "2022.09.25"]
[Round "6.34"]
[White "Saric, Sinisa"]
[Black "Boskovic, Drasko"]
[Result "0-1"]
[ECO "D85"]
[WhiteElo "2372"]
[BlackElo "2415"]
[Annotator "TA"]
[PlyCount "106"]
[EventDate "2022.09.20"]
[EventType "team-tourn"]
[EventCountry "SRB"]
[SourceTitle "playchess.com"]
[Source "ChessBase"]
[SourceQuality "1"]
[TimeControl "40/5400+30:1800+30"]

{[%evp 21,105,0,0,0,7,3,4,6,19,0,0,0,0,0,0,0,0,0,0,0,15,16,56,52,64,61,89,99,108,88,153,52,52,52,52,53,53,60,94,94,94,94,89,89,143,127,140,106,168,53,62,47,48,43,50,24,102,8,47,0,0,0,0,-728,-658,-29979,0,-29978,-29979,-29979,-29980,-29980,0,-29981,-29982,-29994,-29995,-29995,-29996,-29996,-29997,-29997,-29998,-29998,-29999,-29999]} 1. d4 {[%emt 0:00:06]} Nf6 {[%emt 0:00:04]} 2. c4 {[%emt 0:00:10]} g6 {[%emt 0:00:32]} 3. Nc3 {[%emt 0:00:14]} d5 {[%emt 0:00:06]} 4. cxd5 {[%emt 0:00:13]} Nxd5 {[%emt 0:00:04]} 5. e4 {[%emt 0:00:13]} Nxc3 {[%emt 0:00:06]} 6. bxc3 {[%emt 0:00:06]} Bg7 {[%emt 0:00:03]} 7. Nf3 {[%emt 0:00:13]} c5 {[%emt 0:00:05]} 8. Bb5+ {[%emt 0:00:13]} Nc6 {[%emt 0:00:37]} 9. O-O {[%emt 0:00:11]} O-O {[%emt 0:01:26]} 10. Be3 {[%emt 0:00:21]} Bg4 {[%emt 0:00:20]} 11. Bxc6 {[%emt 0:01:04] 11.dxc5 is not played anymore.} bxc6 {[%emt 0:00:05]} 12. Rc1 {[%emt 0:00:26] D85: Exchange Grünfeld: Unusual White 7th moves and lines with 7 Nf3.} Qa5 {[%emt 0:00:34]} 13. Qc2 {[%emt 0:00:35]} Bxf3 {[%emt 0:03:52]} 14. gxf3 {[%emt 0:00:09] [#] The position is equal.} Rad8 $146 {[%emt 0:13:42][%cal Rc5d4]} ({Predecessor:} 14... cxd4 15. cxd4 Qh5 16. Kg2 Rac8 17. d5 Be5 18. h3 cxd5 19. Qxc8 Rxc8 20. Rxc8+ Kg7 21. exd5 {0-1 (40) Andreikin,D (2724)-Xiong,J (2687) Chess.com INT 2021}) 15. dxc5 {[%emt 0:27:12]} Qc7 {[%emt 0:19:26]} 16. Rfd1 {[%emt 0:05:13]} Be5 {[%emt 0:02:21]} 17. h3 {[%emt 0:08:47]} Bf4 {[%emt 0:03:02]} 18. Qe2 {[%emt 0:06:51]} Qe5 {[%emt 0:02:41]} 19. Bxf4 {[%emt 0:03:36]} Qxf4 {[%emt 0:00:06]} 20. Qe3 {[%emt 0:00:09]} Qe5 {[%emt 0:00:30]} 21. Kg2 {[%emt 0:09:42]} Qe6 {[%emt 0:02:49]} 22. a4 {[%emt 0:04:29]} Qb3 {[%emt 0:01:41]} 23. Rd4 {[%emt 0:02:09]} e5 {[%emt 0:00:54]} 24. Rd6 {[%emt 0:14:32]} Qxa4 {[%emt 0:00:13]} 25. Qg5 {[%emt 0:00:03][%csl LRd8,LRe5]} Qa5 {[%emt 0:34:19]} (25... Rxd6 $142 26. cxd6 Qa3) 26. Rxc6 {[%emt 0:00:59]} ({Don't play} 26. Qxe5 Rfe8 27. Qd4 Rxd6 28. Qxd6 Re6 $16) ({Better is} 26. Rcd1 $16 {[%cal Rd6d8]} Rde8 27. Rxc6) 26... Rc8 $14 {[%emt 0:02:23]} 27. Rxc8 {[%emt 0:05:13]} Rxc8 {[%emt 0:00:05]} 28. Qxe5 {[%emt 0:00:32] Black must now prevent Rd1.} Rxc5 {[%emt 0:00:07][%mdl 4096] Endgame KQR-KQR} 29. Qf6 {[%emt 0:01:34] aiming for Rd1.} Rc8 {[%emt 0:02:08]} 30. Rd1 {[%emt 0:02:12]} Qc7 {[%emt 0:00:56]} 31. h4 {[%emt 0:00:13][%cal Oh4h5] Threatens to win with h5!} h5 {[%emt 0:00:46]} 32. Rd5 {[%emt 0:05:50]} Re8 {[%emt 0:01:59]} (32... a5 $142) 33. Qd4 $16 {[%emt 0:00:17]} Qe7 {[%emt 0:00:34]} 34. Kg3 {[%emt 0:00:49]} a5 {[%emt 0:01:32]} (34... Qc7+ $16 35. Kg2 Qf4) 35. Kg2 {[%emt 0:01:58]} (35. c4 $18) 35... Ra8 {[%emt 0:03:06]} 36. Rd7 {[%emt 0:00:42]} Qxh4 {[%emt 0:02:33]} 37. Qd5 {[%emt 0:00:07] Inhibits Qg5+.} Rf8 {[%emt 0:00:07]} 38. Qxa5 {[%emt 0:00:07]} Qf4 {[%emt 0:00:04] Against Qe5} (38... Qf6 $11 {remains equal.}) 39. Qc7 {[%emt 0:01:54]} ({White should play} 39. Rd8 $1 $16) 39... Qf6 {[%emt 0:00:04]} 40. f4 {[%emt 0:00:32]} (40. Rd5 $14) 40... Qe6 {[%emt 0:03:25]} 41. f3 {[%emt 0:08:13]} Qa2+ {[%emt 0:00:12]} 42. Kg3 $2 {[%emt 0:06:33][%mdl 8192]} (42. Kf1 $11) 42... h4+ $1 $19 {[%emt 0:06:46][%mdl 64] Decoy} 43. Kxh4 {[%emt 0:00:31]} Qf2+ {[%emt 0:00:28]} (43... Qh2+ $1 {mates} 44. Kg5 Qh5+ 45. Kf6 Re8 46. Re7 Qh4+ 47. Ke5 Rxe7+ 48. Qxe7 Qxe7+ 49. Kd5 Qd8+ 50. Ke5 Qe7+ 51. Kd4 Qf6+ 52. Kd3 Qxf4 53. Kc2 Qxf3 54. Kb3 Qxe4 55. c4 g5 56. Kb4 g4 57. Kc5 g3 58. Kb6 g2 59. c5 g1=Q 60. Kc7 Qxc5+ 61. Kb8 Qe8+ 62. Kb7 Qec8#) 44. Kg4 $2 {[%emt 0:04:12][%mdl 8192]} (44. Kh3 $11) 44... Qg2+ {[%emt 0:02:05]} 45. Kh4 {[%emt 0:00:06] [#]} Qh2+ $1 {[%emt 0:04:55]} ({And not} 45... Qxf3 46. Rd8 $11) 46. Kg5 {[%emt 0:01:15]} Qh5+ {[%emt 0:01:24]} 47. Kf6 {[%emt 0:00:07][%cal Rd7f7] [#]} Re8 $1 {[%emt 0:00:40][%cal Rh5h4] Black mates.} 48. Rxf7 {[%emt 0:07:35]} Qh4+ {[%emt 0:00:23]} 49. Kxg6 {[%emt 0:00:14]} Re6+ {[%emt 0:00:08]} 50. Kf5 {[%emt 0:00:12]} Qh3+ {[%emt 0:00:04]} 51. Kg5 {[%emt 0:00:15]} Qh6+ {[%emt 0:00:10]} 52. Kg4 {[%emt 0:00:15]} Rg6+ {[%emt 0:00:06]} 53. Kf5 {[%emt 0:00:07]} Qh5# {[%emt 0:00:05] Weighted Error Value: White=0.56/Black=0.19 (very precise)} 0-1

[Event "1st Serbian League 2022"]
[Site "Vrnjacka Banja"]
[Date "2022.09.25"]
[Round "6.35"]
[White "Munizaba, Slobodan"]
[Black "Milosevic, Milos"]
[Result "1/2-1/2"]
[ECO "E66"]
[WhiteElo "2416"]
[BlackElo "2379"]
[Annotator "TA"]
[PlyCount "31"]
[EventDate "2022.09.20"]
[EventType "team-tourn"]
[EventCountry "SRB"]
[SourceTitle "playchess.com"]
[Source "ChessBase"]
[SourceQuality "1"]
[TimeControl "40/5400+30:1800+30"]

{[%evp 21,31,12,25,0,14,-12,-5,0,16,8,42,-2]} 1. d4 {[%emt 0:00:04]} Nf6 {[%emt 0:03:47]} 2. Nf3 {[%emt 0:00:08]} g6 {[%emt 0:00:04]} 3. g3 {[%emt 0:00:11]} Bg7 {[%emt 0:00:03]} 4. Bg2 {[%emt 0:00:07]} O-O {[%emt 0:00:33]} 5. O-O {[%emt 0:00:09]} d6 {[%emt 0:00:08]} 6. c4 {[%emt 0:00:33]} c5 {[%emt 0:02:33]} 7. Nc3 {[%emt 0:00:43]} Nc6 {[%emt 0:00:08]} 8. d5 {[%emt 0:00:26]} Na5 {[%emt 0:00:04]} 9. Nd2 {[%emt 0:00:16]} e6 {[%emt 0:00:07]} 10. Qc2 {[%emt 0:03:36]} exd5 {[%emt 0:00:23]} 11. cxd5 {[%emt 0:00:26]} Re8 {[%emt 0:01:28]} 12. e4 {[%emt 0:11:55] E66: King's Indian: Fianchetto: 6...c5 7 0-0 Nc6 8 d5.} Bd7 {[%emt 0:00:56]} 13. a4 {[%emt 0:04:10] Prevents b5.} a6 {[%emt 0:01:12]} 14. b3 {[%emt 0:01:52] Against c4} b5 {[%emt 0:03:26] [#]} 15. Bb2 $146 {[%emt 0:12:30]} ({Predecessor:} 15. axb5 axb5 16. Bb2 h5 17. h3 h4 18. g4 Nh7 19. f4 Bd4+ 20. Kh1 b4 21. Ne2 Bxb2 22. Qxb2 {½-½ (90) Zohaib Hassan,M (2231)-Perez Perez,G (2153) Benidorm 2017}) 15... Rb8 {[%emt 0:31:23]} 16. Nd1 {[%emt 1:01:24] An uneventful encounter.  Weighted Error Value: White=0.09 (flawless) /Black=0.15 (very precise)} 1/2-1/2

[Event "1st Serbian League 2022"]
[Site "Vrnjacka Banja"]
[Date "2022.09.25"]
[Round "6.36"]
[White "Markovic, Miroslav"]
[Black "Krstic, Petar"]
[Result "1/2-1/2"]
[ECO "B10"]
[WhiteElo "2275"]
[BlackElo "2290"]
[Annotator "TA"]
[PlyCount "24"]
[EventDate "2022.09.20"]
[EventType "team-tourn"]
[EventCountry "SRB"]
[SourceTitle "playchess.com"]
[Source "ChessBase"]
[SourceQuality "1"]
[TimeControl "40/5400+30:1800+30"]

{[%evp 14,24,16,8,8,0,0,0,-8,-7,-7,-8,-7]} 1. e4 {[%emt 0:00:02]} c6 {[%emt 0:00:19]} 2. d3 {[%emt 0:02:12]} d5 {[%emt 0:00:12]} 3. Nd2 {[%emt 0:00:04]} g6 {[%emt 0:00:18]} 4. Ngf3 {[%emt 0:01:19]} Bg7 {[%emt 0:00:07]} 5. g3 {[%emt 0:00:43]} e5 {[%emt 0:01:09]} 6. Bg2 {[%emt 0:02:04]} Ne7 {[%emt 0:00:26]} 7. O-O {[%emt 0:00:51]} O-O {[%emt 0:00:10]} 8. c3 {[%emt 0:00:33] The position is equal.} Re8 {[%emt 0:01:31] [#] B10: Caro-Kann: 2 d3 and 2 c4.} 9. d4 $146 {[%emt 0:01:19]} ({Predecessor:} 9. Re1 Nd7 10. b4 a5 11. a4 b6 12. Rb1 Qc7 13. Bb2 Bb7 14. Bh3 Rad8 15. exd5 cxd5 16. bxa5 bxa5 {0-1 (34) Roberts,P (2206)-Eperjesi,L (2240) Budapest 2010}) 9... exd4 {[%emt 0:04:00]} 10. Nxd4 {[%emt 0:00:17]} Nd7 {[%emt 0:02:55]} 11. Qc2 {[%emt 0:10:36]} Nc5 {[%emt 0:06:56]} 12. exd5 {[%emt 0:21:45]} Nxd5 {[%emt 0:00:37] Not much happened in this game.  Weighted Error Value: White=0.02 (flawless) /Black=0.00 (flawless)} 1/2-1/2